bitfinex-derivatives/quotes_BNBF0:USTF0_20250529
["timestamp","ask_amount","ask_price","bid_price","bid_amount"]
[1748495041239,0.29302311,682.54,682.02,0.56259366]
[1748495041432,0.29302311,682.54,682.01,0.498]
[1748495041735,0.29302311,682.54,682.02,0.56246623]
[1748495041935,0.29302311,682.54,682.03,0.56246623]
[1748495042135,0.29302311,682.54,682.04,0.56246623]
[1748495042336,0.29302311,682.54,682.01,0.498]
[1748495042537,0.29302311,682.54,682.02,0.56232483]
[1748495042838,0.29302311,682.54,682.03,0.56232483]
[1748495043134,0.29302311,682.54,682.04,0.56232483]
[1748495043338,0.29302311,682.54,682.01,0.498]
[1748495064257,0.29302311,682.54,682.0,0.434]
[1748495064855,0.29302311,682.54,680.53,0.4668317]
[1748495065052,0.29302311,682.54,680.54,0.56211213]
[1748495065252,0.29302311,682.54,680.55,0.56211213]
[1748495065450,0.29302311,682.54,680.56,0.56209945]
[1748495065757,0.29302311,682.54,680.57,0.56209945]
[1748495066056,0.29302311,682.54,680.58,0.56209945]
[1748495066256,0.29302311,682.54,680.59,0.56209945]
[1748495066449,0.29302311,682.54,680.6,0.56209945]
[1748495066653,0.29302311,682.54,680.61,0.56204598]
[1748495066852,0.29302311,682.54,680.62,0.56204598]
[1748495067052,0.29302311,682.54,680.63,0.56204598]
[1748495067254,0.29302311,682.54,680.64,0.56204598]
[1748495067458,0.29302311,682.54,680.65,0.56201519]
[1748495067658,0.29302311,682.54,680.66,0.56201519]
[1748495067858,0.29302311,682.54,680.67,0.56201519]
[1748495068053,0.29302311,682.54,680.68,0.56201519]
[1748495068254,0.29302311,682.54,680.63,0.639]
[1748495068255,0.29302311,682.54,680.69,0.56201519]
[1748495068455,0.29302311,682.54,680.7,0.56201519]
[1748495068757,0.29302311,682.54,680.71,0.56201519]
[1748495068954,0.29302311,682.54,680.72,0.56201519]
[1748495069155,0.29302311,682.54,680.73,0.56201519]
[1748495069356,0.29302311,682.54,680.74,0.56201519]
[1748495069555,0.29302311,682.54,680.75,0.56195734]
[1748495069759,0.29302311,682.54,680.76,0.56195734]
[1748495070062,0.29302311,682.54,680.77,0.56195734]
[1748495070260,0.29302311,682.54,680.78,0.56195734]
[1748495070557,0.29302311,682.54,680.79,0.56195281]
[1748495070761,0.29302311,682.54,680.8,0.56195281]
[1748495070956,0.29302311,682.54,680.81,0.56192865]
[1748495071161,0.29302311,682.54,680.82,0.56192814]
[1748495071461,0.29302311,682.54,680.83,0.56192828]
[1748495071659,0.29302311,682.54,680.84,0.56192828]
[1748495071857,0.29302311,682.54,680.85,0.56192828]
[1748495072058,0.29302311,682.54,680.63,0.639]
[1748495072059,0.29302311,682.54,680.86,0.56192828]
[1748495072258,0.29302311,682.54,680.87,0.56192828]
[1748495072458,0.29302311,682.54,680.88,0.56192828]
[1748495072661,0.29302311,682.54,680.89,0.56187286]
[1748495072861,0.29302311,682.54,680.9,0.56187286]
[1748495073061,0.29302311,682.54,680.91,0.56187286]
[1748495073262,0.29302311,682.54,680.92,0.56187324]
[1748495073460,0.29302311,682.54,680.93,0.56187324]
[1748495073663,0.29302311,682.54,680.94,0.56187324]
[1748495073857,0.29302311,682.54,680.95,0.56187324]
[1748495074059,0.29302311,682.54,680.96,0.56187324]
[1748495074261,0.29302311,682.54,680.97,0.56184246]
[1748495074463,0.29302311,682.54,680.98,0.56181125]
[1748495074765,0.29302311,682.54,680.99,0.56181125]
[1748495074959,0.29302311,682.54,680.63,0.639]
[1748495075160,0.29302311,682.54,680.64,0.56181135]
[1748495075467,0.29302311,682.54,680.65,0.56181135]
[1748495075763,0.29302311,682.54,680.63,0.639]
[1748495075965,0.29302311,682.54,680.64,0.56178392]
[1748495076166,0.29302311,682.54,680.65,0.56178392]
[1748495076367,0.29302311,682.54,680.66,0.56184369]
[1748495076566,0.29302311,682.54,680.67,0.56184369]
[1748495076766,0.29302311,682.54,680.68,0.56184369]
[1748495076967,0.29302311,682.54,680.69,0.56175532]
[1748495077266,0.29302311,682.54,680.7,0.56175532]
[1748495077464,0.29302311,682.54,680.71,0.56175532]
[1748495077666,0.29302311,682.54,680.72,0.56175532]
[1748495077866,0.29302311,682.54,680.73,0.56175532]
[1748495078064,0.29302311,682.54,680.74,0.5617425]
[1748495078267,0.29302311,682.54,680.75,0.5617425]
[1748495078567,0.29302311,682.54,680.76,0.56157247]
[1748495078863,0.29302311,682.54,680.77,0.56157247]
[1748495079066,0.29302311,682.54,680.78,0.56157247]
[1748495079268,0.29302311,682.54,680.79,0.56157247]
[1748495079469,0.29302311,682.54,680.8,0.56157247]
[1748495079665,0.29302311,682.54,680.81,0.56140877]
[1748495079864,0.29302311,682.54,680.63,0.639]
[1748495079865,0.29302311,682.54,680.82,0.56140877]
[1748495080065,0.29302311,682.54,680.83,0.56140877]
[1748495080267,0.29302311,682.54,680.84,0.56140877]
[1748495080567,0.29302311,682.54,680.85,0.56140877]
[1748495080769,0.29302311,682.54,680.86,0.56140877]
[1748495081065,0.29302311,682.54,680.87,0.56140877]
[1748495081267,0.29302311,682.54,680.88,0.56140877]
[1748495081468,0.29302311,682.54,680.89,0.56140877]
[1748495081670,0.29302311,682.54,680.9,0.56110885]
[1748495081867,0.29302311,682.54,680.91,0.56110666]
[1748495082068,0.29302311,682.54,680.92,0.56110666]
[1748495082269,0.29302311,682.54,680.93,0.56110666]
[1748495082468,0.29302311,682.54,680.94,0.56110666]
[1748495082670,0.29302311,682.54,680.95,0.56110666]
[1748495082869,0.29302311,682.54,680.96,0.56110666]
[1748495083071,0.29302311,682.54,680.63,0.639]
[1748495083072,0.29302311,682.54,680.97,1.12192832]
[1748495083265,0.29302311,682.54,680.98,0.56096416]
[1748495083465,0.29302311,682.54,680.99,0.56096416]
[1748495083767,0.29302311,682.54,681.0,0.56082942]
[1748495083971,0.29302311,682.54,681.01,0.56082942]
[1748495084170,0.29302311,682.54,681.02,0.56082942]
[1748495084371,0.29302311,682.54,681.03,0.56082942]
[1748495084572,0.29302311,682.54,681.04,0.56069825]
[1748495084769,0.29302311,682.54,681.05,0.56069825]
[1748495084974,0.29302311,682.54,681.06,0.56069825]
[1748495085171,0.29302311,682.54,681.07,0.56069825]
[1748495085369,0.29302311,682.54,681.08,0.56062963]
[1748495085669,0.29302311,682.54,681.09,0.5605731]
[1748495085871,0.29302311,682.54,681.1,0.5605731]
[1748495086072,0.29302311,682.54,681.11,0.5605731]
[1748495086273,0.29302311,682.54,681.12,0.5605731]
[1748495086474,0.29302311,682.54,681.13,0.5605731]
[1748495086675,0.29302311,682.54,681.14,0.56051152]
[1748495086974,0.29302311,682.54,681.15,0.56051152]
[1748495087175,0.29302311,682.54,681.16,0.56051152]
[1748495087476,0.29302311,682.54,680.63,0.639]
[1748495087674,0.29302311,682.54,680.64,0.56045753]
[1748495087976,0.29302311,682.54,680.63,0.639]
[1748495087977,0.29302311,682.54,680.65,0.56045753]
[1748495088174,0.29302311,682.54,680.66,0.56045753]
[1748495088376,0.29302311,682.54,680.67,0.56041048]
[1748495088675,0.29302311,682.54,680.68,0.56041048]
[1748495088875,0.29302311,682.54,680.69,0.56041048]
[1748495089072,0.29302311,682.54,680.7,0.5604105]
[1748495089275,0.29302311,682.54,680.71,0.56041043]
[1748495089476,0.29302311,682.54,680.72,0.5603697]
[1748495089677,0.29302311,682.54,680.63,0.639]
[1748495089872,0.29302311,682.54,680.64,0.5603697]
[1748495090072,0.29302311,682.54,680.65,0.5603697]
[1748495090273,0.29302311,682.54,680.66,0.56033457]
[1748495090472,0.29302311,682.54,680.67,0.56033457]
[1748495090676,0.29302311,682.54,680.68,0.56033457]
[1748495090877,0.29302311,682.54,680.69,0.56033457]
[1748495091077,0.29302311,682.54,680.7,0.56033457]
[1748495091377,0.29302311,682.54,680.71,0.56033457]
[1748495091577,0.29302311,682.54,680.72,0.56033457]
[1748495091780,0.29302311,682.54,680.73,0.56033457]
[1748495091980,0.29302311,682.54,680.74,0.56030509]
[1748495092274,0.29302311,682.54,680.75,0.56030501]
[1748495092479,0.29302311,682.54,680.76,0.56030501]
[1748495092681,0.29302311,682.54,680.63,0.639]
[1748495092682,0.29302311,682.54,680.77,0.56030501]
[1748495092880,0.29302311,682.54,680.78,0.56030501]
[1748495093075,0.29302311,682.54,680.79,0.56030501]
[1748495093280,0.29302311,682.54,680.8,0.56030501]
[1748495093476,0.29302311,682.54,680.81,0.56030501]
[1748495093781,0.29302311,682.54,680.63,0.639]
[1748495093975,0.29302311,682.54,680.7,0.4668317]
[1748495094180,0.29302311,682.54,680.71,0.56023527]
[1748495094380,0.29302311,682.54,680.72,0.56023527]
[1748495094581,0.29302311,682.54,680.73,0.56023527]
[1748495094782,0.29302311,682.54,680.71,0.4668317]
[1748495094980,0.29302311,682.54,680.72,0.56024588]
[1748495095279,0.29302311,682.54,680.73,0.56024588]
[1748495095582,0.29302311,682.54,680.74,0.5602993]
[1748495095774,0.29302311,682.54,680.75,0.5602993]
[1748495095977,0.29302311,682.54,680.76,0.5602993]
[1748495096179,0.29302311,682.54,680.77,0.56029948]
[1748495096480,0.29302311,682.54,680.78,0.56040918]
[1748495096680,0.29302311,682.54,680.79,0.56040918]
[1748495096880,0.29302311,682.54,680.8,0.56040918]
[1748495097079,0.29302311,682.54,680.81,0.56040918]
[1748495097275,0.29302311,682.54,680.82,0.56040918]
[1748495097477,0.29302311,682.54,680.83,0.56054784]
[1748495097676,0.29302311,682.54,680.84,0.56054684]
[1748495097881,0.29302311,682.54,680.85,0.56054684]
[1748495098084,0.29302311,682.54,680.62,0.4668317]
[1748495098281,0.29302311,682.54,680.63,0.56054684]
[1748495098581,0.29302311,682.54,680.64,0.56054684]
[1748495098781,0.29302311,682.54,680.65,0.56054684]
[1748495098977,0.29302311,682.54,680.66,0.56070691]
[1748495099176,0.29302311,682.54,680.67,0.56070691]
[1748495099377,0.29302311,682.54,680.68,0.56070691]
[1748495099577,0.29302311,682.54,680.69,0.56070691]
[1748495099778,0.29302311,682.54,680.7,0.56070691]
[1748495100082,0.29302311,682.54,680.69,0.598]
[1748495100083,0.29302311,682.54,680.71,0.56070691]
[1748495100284,0.29302311,682.54,680.72,0.56088482]
[1748495100582,0.29302311,682.54,680.69,0.598]
[1748495100583,0.29302311,682.54,680.73,0.56088482]
[1748495100783,0.29302311,682.54,680.74,0.56088482]
[1748495100982,0.29302311,682.54,680.75,0.56088482]
[1748495101183,0.29302311,682.54,680.76,0.56088482]
[1748495101382,0.29302311,682.54,680.77,0.5612819]
[1748495101582,0.29302311,682.54,680.78,0.5612819]
[1748495101879,0.29302311,682.54,680.79,0.5612819]
[1748495102084,0.29302311,682.54,680.8,0.5612819]
[1748495102282,0.29302311,682.54,680.81,0.56149983]
[1748495102484,0.29302311,682.54,680.82,0.56149983]
[1748495102680,0.29302311,682.54,680.69,0.598]
[1748495102883,0.29302311,682.54,680.7,0.56154965]
[1748495103080,0.29302311,682.54,680.71,0.56154965]
[1748495103280,0.29302311,682.54,680.72,0.56154965]
[1748495103485,0.29302311,682.54,680.73,0.56154965]
[1748495103686,0.29302311,682.54,680.74,0.56154965]
[1748495103884,0.29302311,682.54,680.75,0.56154965]
[1748495104079,0.29302311,682.54,680.76,0.56154965]
[1748495104283,0.29302311,682.54,680.77,0.56154965]
[1748495104484,0.29302311,682.54,680.78,0.56154965]
[1748495104684,0.29302311,682.54,680.79,0.5620296]
[1748495104884,0.29302311,682.54,680.8,0.5620296]
[1748495105087,0.29302311,682.54,680.81,0.5620296]
[1748495105288,0.29302311,682.54,680.69,0.598]
[1748495105482,0.29302311,682.54,680.7,0.5622769]
[1748495105686,0.29302311,682.54,680.71,0.5622769]
[1748495105884,0.29302311,682.54,680.69,0.598]
[1748495106083,0.29302311,682.54,680.7,0.56228669]
[1748495106289,0.29302311,682.54,680.71,0.56228669]
[1748495106488,0.29302311,682.54,680.72,0.5626165]
[1748495106688,0.29302311,682.54,680.73,0.5626223]
[1748495107485,0.29302311,682.54,680.74,1.60798984]
[1748495107790,0.29302311,682.54,680.75,1.6078181]
[1748495108085,0.29302311,682.54,680.76,1.60781614]
[1748495108290,0.29302311,682.54,680.77,1.04545472]
[1748495108484,0.29302311,682.54,680.78,1.60827364]
[1748495108688,0.29302311,682.54,680.79,1.60827364]
[1748495108885,0.29302311,682.54,680.8,1.60827364]
[1748495109089,0.29302311,682.54,680.81,1.60827364]
[1748495109286,0.29302311,682.54,680.82,1.60827364]
[1748495109487,0.29302311,682.54,680.83,1.04513695]
[1748495109691,0.29302311,682.54,680.84,1.6080756]
[1748495109893,0.29302311,682.54,680.85,1.6080756]
[1748495110193,0.29302311,682.54,680.86,1.6080756]
[1748495110393,0.29302311,682.54,680.7,0.4668317]
[1748495110588,0.29302311,682.54,680.71,1.60852796]
[1748495110793,0.29302311,682.54,680.72,2.07535966]
[1748495110989,0.29302311,682.54,680.72,0.4668317]
[1748495111191,0.29302311,682.54,680.73,1.60835265]
[1748495111391,0.29302311,682.54,680.71,0.4668317]
[1748495111586,0.29302311,682.54,680.69,0.598]
[1748495111587,0.29302311,682.54,680.74,0.448]
[1748495112193,0.29302311,682.54,680.75,0.56343237]
[1748495112493,0.29302311,682.54,680.76,1.60942545]
[1748495112792,0.29302311,682.54,680.74,0.448]
[1748495112988,0.29302311,682.54,680.75,1.04599149]
[1748495113388,0.29302311,682.54,680.76,1.60976096]
[1748495113888,0.29302311,682.54,680.77,1.60976096]
[1748495114092,0.29302311,682.54,680.78,1.60976096]
[1748495114291,0.29302311,682.54,680.79,1.60976096]
[1748495114493,0.29302311,682.54,680.8,1.60976096]
[1748495114693,0.29302311,682.54,680.81,1.60976096]
[1748495114893,0.29302311,682.54,680.82,1.60976096]
[1748495115096,0.29302311,682.54,680.83,0.56355045]
[1748495115291,0.29302311,682.54,680.74,0.448]
[1748495115490,0.29302311,682.54,680.75,1.61016749]
[1748495115693,0.29302311,682.54,680.76,1.61016749]
[1748495115996,0.29302311,682.54,680.77,1.61016749]
[1748495116295,0.29302311,682.54,680.78,1.61016749]
[1748495116495,0.29302311,682.54,680.79,1.61016749]
[1748495116695,0.29302311,682.54,680.8,1.61016749]
[1748495116896,0.29302311,682.54,680.81,1.61016749]
[1748495117193,0.29302311,682.54,680.74,0.448]
[1748495117396,0.29302311,682.54,680.75,1.61049375]
[1748495117595,0.29302311,682.54,680.76,1.61049375]
[1748495117791,0.29302311,682.54,680.77,1.61049375]
[1748495117991,0.29302311,682.54,680.78,1.61080105]
[1748495118196,0.29302311,682.54,680.79,1.61080105]
[1748495118496,0.29302311,682.54,680.8,1.61106591]
[1748495118690,0.29302311,682.54,680.81,1.61106591]
[1748495118889,0.29302311,682.54,680.82,1.61108084]
[1748495119092,0.29302311,682.54,680.83,1.61108084]
[1748495119290,0.29302311,682.54,680.84,1.61109507]
[1748495119495,0.29302311,682.54,680.85,1.61109507]
[1748495119693,0.29302311,682.54,680.74,0.448]
[1748495119694,0.29302311,682.54,680.86,1.61107346]
[1748495119895,0.29302311,682.54,680.87,1.61107346]
[1748495120095,0.29302311,682.54,680.88,1.61107346]
[1748495120294,0.29302311,682.54,680.89,1.61107346]
[1748495120496,0.29302311,682.54,680.9,1.61131794]
[1748495120795,0.29302311,682.54,680.74,0.448]
[1748495120796,0.29302311,682.54,680.91,1.61131794]
[1748495120995,0.29302311,682.54,680.92,1.61131794]
[1748495121194,0.29302311,682.54,680.93,1.61131794]
[1748495121394,0.29302311,682.54,680.94,1.61131794]
[1748495121697,0.29302311,682.54,680.95,1.61131794]
[1748495121891,0.29302311,682.54,680.96,0.56414041]
[1748495122196,0.29302311,682.54,680.97,1.61153825]
[1748495122395,0.29302311,682.54,680.98,1.61153825]
[1748495122601,0.29302311,682.54,680.99,1.61153825]
[1748495122795,0.29302311,682.54,681.0,1.61153825]
[1748495122994,0.29302311,682.54,681.01,1.04739784]
[1748495123196,0.29302311,682.54,681.02,1.61199774]
[1748495123395,0.29302311,682.54,681.03,1.61199774]
[1748495123699,0.29302311,682.54,681.04,1.61199774]
[1748495123898,0.29302311,682.54,681.05,1.61199774]
[1748495124098,0.29302311,682.54,681.06,1.61199774]
[1748495124397,0.29302311,682.54,681.07,1.61199774]
[1748495124598,0.29302311,682.54,681.08,1.61199774]
[1748495124801,0.29302311,682.54,681.09,1.61199774]
[1748495125001,0.29302311,682.54,681.1,1.61199774]
[1748495125197,0.29302311,682.54,681.11,1.61199774]
[1748495125397,0.29302311,682.54,681.12,1.61199774]
[1748495125699,0.29302311,682.54,681.13,1.61149906]
[1748495125903,0.29302311,682.54,681.14,1.61156157]
[1748495126103,0.29302311,682.54,681.15,1.61156157]
[1748495126306,0.29302311,682.54,681.16,1.61156157]
[1748495126496,0.29302311,682.54,681.17,1.61156157]
[1748495126701,0.29302311,682.54,681.18,1.61156157]
[1748495127001,0.29302311,682.54,681.19,1.61167338]
[1748495127200,0.29302311,682.54,681.2,1.61167338]
[1748495127501,0.29302311,682.54,681.21,1.6117861]
[1748495127700,0.29302311,682.54,681.22,1.6117861]
[1748495127905,0.29302311,682.54,681.23,1.6117861]
[1748495128108,0.29302311,682.54,681.15,0.471]
[1748495128109,0.29302311,682.54,681.24,1.61176046]
[1748495128306,0.29302311,682.54,681.25,1.61176046]
[1748495128502,0.29302311,682.54,681.26,1.61176046]
[1748495128705,0.29302311,682.54,681.27,1.61209193]
[1748495129004,0.29302311,682.54,681.28,0.56482846]
[1748495129205,0.29302311,682.54,681.29,0.56450718]
[1748495129410,0.29302311,682.54,681.3,0.56450718]
[1748495129606,0.29302311,682.54,681.31,0.56460926]
[1748495129804,0.29302311,682.54,681.15,0.471]
[1748495129805,0.29302311,682.54,681.32,0.56460926]
[1748495130010,0.29302311,682.54,681.33,0.56460926]
[1748495130205,0.29302311,682.54,681.34,0.56460926]
[1748495130406,0.29302311,682.54,681.35,0.56471141]
[1748495130610,0.29302311,682.54,681.36,0.56471078]
[1748495130810,0.29302311,682.54,681.37,0.56471078]
[1748495131006,0.29302311,682.54,681.38,0.56471078]
[1748495131207,0.29302311,682.54,681.39,0.56470751]
[1748495131510,0.29302311,682.54,681.4,0.56470751]
[1748495131710,0.29302311,682.54,681.41,0.56470751]
[1748495132011,0.29302311,682.54,681.15,0.471]
[1748495132208,0.29302311,682.54,681.16,0.56487109]
[1748495132412,0.29302311,682.54,681.17,0.56487214]
[1748495132609,0.29302311,682.54,681.18,0.56487225]
[1748495132809,0.29302311,682.54,681.19,0.56487225]
[1748495133006,0.29302311,682.54,681.2,0.56487225]
[1748495133312,0.29302311,682.54,681.21,0.56487225]
[1748495133507,0.29302311,682.54,681.22,0.56487225]
[1748495133714,0.29302311,682.54,681.23,0.56487225]
[1748495133909,0.29302311,682.54,681.24,0.56493283]
[1748495134212,0.29302311,682.54,681.25,0.56492379]
[1748495134414,0.29302311,682.54,681.26,0.56492379]
[1748495134713,0.29302311,682.54,681.27,0.56503671]
[1748495134908,0.29302311,682.54,681.28,0.56503671]
[1748495135115,0.29302311,682.54,681.29,0.56503671]
[1748495135414,0.29302311,682.54,681.3,0.56497892]
[1748495135614,0.29302311,682.54,681.15,0.471]
[1748495135814,0.29302311,682.54,681.16,0.56497664]
[1748495136013,0.29302311,682.54,681.17,0.56497664]
[1748495136210,0.29302311,682.54,681.18,0.56492736]
[1748495136509,0.29302311,682.54,681.19,0.56493712]
[1748495136713,0.29302311,682.54,681.2,0.56493712]
[1748495136913,0.29302311,682.54,681.21,0.56493712]
[1748495137108,0.29302311,682.54,681.22,0.56493712]
[1748495137314,0.29302311,682.54,681.23,0.56493712]
[1748495137515,0.29302311,682.54,681.24,0.56493712]
[1748495137718,0.29302311,682.54,681.25,0.56493712]
[1748495137917,0.29302311,682.54,681.26,0.56493712]
[1748495138120,0.29302311,682.54,681.27,0.56493712]
[1748495138420,0.29302311,682.54,681.28,0.56474775]
[1748495138620,0.29302311,682.54,681.29,0.56474775]
[1748495138914,0.29302311,682.54,681.3,0.56474775]
[1748495139117,0.29302311,682.54,681.31,0.56474775]
[1748495139320,0.29302311,682.54,681.32,0.56474775]
[1748495139524,0.29302311,682.54,681.33,0.56461642]
[1748495139820,0.29302311,682.54,681.34,0.98659845]
[1748495140017,0.29302311,682.54,681.35,0.56459845]
[1748495140219,0.29302311,682.54,681.36,0.56459845]
[1748495140418,0.29302311,682.54,681.37,0.56459845]
[1748495140717,0.29302311,682.54,681.34,0.422]
[1748495140718,0.29302311,682.54,681.38,0.56459845]
[1748495140916,0.29302311,682.54,681.39,0.56459845]
[1748495141115,0.29302311,682.54,681.4,0.5645556]
[1748495141315,0.29302311,682.54,681.41,0.56453714]
[1748495141622,0.29302311,682.54,681.42,0.56453714]
[1748495141819,0.29302311,682.54,681.43,0.56453714]
[1748495142015,0.29302311,682.54,681.44,0.56453714]
[1748495142224,0.29302311,682.54,681.45,0.56451116]
[1748495142427,0.29302311,682.54,681.46,0.56451116]
[1748495142627,0.29302311,682.54,681.47,0.56449141]
[1748495142822,0.29302311,682.54,681.34,0.422]
[1748495142823,0.29302311,682.54,681.48,0.56449141]
[1748495143023,0.29302311,682.54,681.49,0.56446895]
[1748495143224,0.29302311,682.54,681.5,0.56446895]
[1748495143426,0.29302311,682.54,681.51,0.56446895]
[1748495143623,0.29302311,682.54,681.52,0.56445762]
[1748495143828,0.29302311,682.54,681.34,0.422]
[1748495143829,0.29302311,682.54,681.53,0.56445762]
[1748495144023,0.29302311,682.54,681.34,0.422]
[1748495144024,0.29302311,682.54,681.54,0.56445934]
[1748495144225,0.29302311,682.54,681.34,0.422]
[1748495144529,0.29302311,682.54,681.35,0.56443818]
[1748495144729,0.29302311,682.54,681.36,0.56443818]
[1748495145028,0.29302311,682.54,681.37,0.56443818]
[1748495145228,0.29302311,682.54,681.38,0.56443818]
[1748495145528,0.29302311,682.54,681.34,0.422]
[1748495145529,0.29302311,682.54,681.39,0.56443818]
[1748495145729,0.29302311,682.54,681.4,0.56443818]
[1748495145923,0.29302311,682.54,681.41,0.56443818]
[1748495146123,0.29302311,682.54,681.42,0.56440761]
[1748495146328,0.29302311,682.54,681.43,0.56440761]
[1748495146527,0.29302311,682.54,681.44,0.56440761]
[1748495146730,0.29302311,682.54,681.45,0.56438842]
[1748495146931,0.29302311,682.54,681.46,0.56438842]
[1748495147130,0.29302311,682.54,681.47,0.56438842]
[1748495147332,0.29302311,682.54,681.48,0.56438784]
[1748495147526,0.29302311,682.54,681.49,0.56438784]
[1748495147731,0.29302311,682.54,681.5,0.56436906]
[1748495147928,0.29302311,682.54,681.51,0.56436906]
[1748495148128,0.29302311,682.54,681.52,0.56436906]
[1748495148331,0.29302311,682.54,681.53,0.56436906]
[1748495148530,0.29302311,682.54,681.54,0.56434771]
[1748495148731,0.29302311,682.54,681.34,0.422]
[1748495148933,0.29302311,682.54,681.35,0.56434757]
[1748495149127,0.29302311,682.54,681.36,0.56434757]
[1748495149334,0.29302311,682.54,681.37,0.56434757]
[1748495149529,0.29302311,682.54,681.38,0.5643303]
[1748495149735,0.29302311,682.54,681.39,0.5643303]
[1748495150029,0.29302311,682.54,681.4,0.5643303]
[1748495150333,0.29302311,682.54,681.41,0.5643303]
[1748495150534,0.29302311,682.54,681.42,0.5643118]
[1748495150828,0.29302311,682.54,681.34,0.422]
[1748495151031,0.29302311,682.54,681.35,0.56431407]
[1748495151228,0.29302311,682.54,681.34,0.422]
[1748495151428,0.29302311,682.54,681.35,0.56429585]
[1748495151627,0.29302311,682.54,681.36,0.56429585]
[1748495151828,0.29302311,682.54,681.37,0.56429585]
[1748495152030,0.29302311,682.54,681.38,0.56429585]
[1748495152230,0.29302311,682.54,681.39,0.56429585]
[1748495152433,0.29302311,682.54,681.34,0.422]
[1748495152434,0.29302311,682.54,681.4,0.56429585]
[1748495152735,0.29302311,682.54,681.41,0.56429585]
[1748495152929,0.29302311,682.54,681.42,0.56429585]
[1748495153135,0.29302311,682.54,681.43,0.56429585]
[1748495153329,0.29302311,682.54,681.44,0.56429585]
[1748495153529,0.29302311,682.54,681.45,0.56429585]
[1748495153831,0.29302311,682.54,681.15,0.471]
[1748495154040,0.29302311,682.54,681.16,0.564275]
[1748495154334,0.29302311,682.54,681.17,0.56426728]
[1748495154536,0.29302311,682.54,681.15,0.471]
[1748495154537,0.29302311,682.54,681.18,0.56426728]
[1748495154736,0.29302311,682.54,681.15,0.471]
[1748495154737,0.29302311,682.54,681.19,0.56426728]
[1748495155030,0.29302311,682.54,681.2,0.56426728]
[1748495155229,0.29302311,682.54,681.15,0.471]
[1748495155431,0.29302311,682.54,681.16,0.56421996]
[1748495155633,0.29302311,682.54,681.17,0.56421996]
[1748495155936,0.29302311,682.54,681.18,0.56421996]
[1748495156133,0.29302311,682.54,681.17,0.636]
[1748495156134,0.29302311,682.54,681.19,0.56421996]
[1748495156331,0.29302311,682.54,681.2,0.56419527]
[1748495156533,0.29302311,682.54,681.21,0.56419527]
[1748495156734,0.29302311,682.54,681.17,0.636]
[1748495156931,0.29302311,682.54,681.18,0.56419555]
[1748495157236,0.29302311,682.54,681.19,0.56419555]
[1748495157436,0.29302311,682.54,681.2,0.5641781]
[1748495157637,0.29302311,682.54,681.21,0.56417721]
[1748495157938,0.29302311,682.54,681.22,0.56417721]
[1748495158236,0.29302311,682.54,681.23,0.56417992]
[1748495158538,0.29302311,682.54,681.24,0.56417992]
[1748495158732,0.29302311,682.54,681.25,0.56417992]
[1748495158935,0.29302311,682.54,681.17,0.636]
[1748495159236,0.29302311,682.54,681.18,0.56418036]
[1748495159438,0.29302311,682.54,681.17,0.636]
[1748495159735,0.29302311,682.54,681.18,0.56416725]
[1748495159935,0.29302311,682.54,681.19,0.56416725]
[1748495160137,0.29302311,682.54,681.2,0.56416725]
[1748495160337,0.29302311,682.54,681.21,0.56416725]
[1748495160531,0.29302311,682.54,681.22,0.56416725]
[1748495160733,0.29302311,682.54,681.17,0.636]
[1748495160932,0.29302311,682.54,681.18,0.56417466]
[1748495161136,0.29302311,682.54,681.19,0.56417466]
[1748495161337,0.29302311,682.54,681.2,0.56417466]
[1748495161533,0.29302311,682.54,681.21,0.56417466]
[1748495161739,0.29302311,682.54,681.22,0.56417466]
[1748495162039,0.29302311,682.54,681.23,0.56417466]
[1748495162340,0.29302311,682.54,681.24,0.56415797]
[1748495162639,0.29302311,682.54,681.25,0.56416448]
[1748495162833,0.29302311,682.54,681.26,0.56416448]
[1748495163134,0.29302311,682.54,681.27,0.56416448]
[1748495163334,0.29302311,682.54,681.28,0.56416448]
[1748495163539,0.29302311,682.54,681.17,0.636]
[1748495163736,0.29302311,682.54,681.18,0.56414234]
[1748495163934,0.29302311,682.54,681.17,0.636]
[1748495163935,0.29302311,682.54,681.19,0.56414234]
[1748495164233,0.29302311,682.54,681.2,0.56414234]
[1748495164440,0.29302311,682.54,681.21,0.56414234]
[1748495164738,0.29302311,682.54,681.17,0.636]
[1748495164739,0.29302311,682.54,681.22,0.56414234]
[1748495164937,0.29302311,682.54,681.23,0.56414234]
[1748495165137,0.29302311,682.54,681.24,0.56414234]
[1748495165338,0.29302311,682.54,681.25,0.56414234]
[1748495165537,0.29302311,682.54,681.26,0.56414234]
[1748495165736,0.29302311,682.54,681.27,0.56414234]
[1748495165937,0.29302311,682.54,681.28,0.56417706]
[1748495166135,0.29302311,682.54,681.29,0.56417706]
[1748495166336,0.29302311,682.54,681.17,0.636]
[1748495166337,0.29302311,682.54,681.3,0.56417706]
[1748495166537,0.29302311,682.54,681.31,0.56417706]
[1748495166739,0.29302311,682.54,681.32,0.56417706]
[1748495166938,0.29302311,682.54,681.33,0.56426185]
[1748495167140,0.29302311,682.54,681.34,0.56428407]
[1748495167343,0.29302311,682.54,681.35,0.56430297]